fUST/lending_fUST_20260411
["ID","MTS","AMOUNT","RATE_DAILY","PERIOD"]
[420261318,1775868642565,-500.0,0.00013698,2]
[420261320,1775868642583,-501.94464047,0.00013698,2]
[420261323,1775868642593,-500.0,0.00013698,2]
[420261324,1775868642603,-500.0,0.00013698,2]
[420261326,1775868642616,-501.14702842,0.00013698,2]
[420261328,1775868642648,-500.94357474,0.00013698,2]
[420261330,1775868642658,-500.99673894,0.00013698,2]
[420261331,1775868642667,-500.0,0.00013698,2]
[420261332,1775868642699,-501.20116954,0.00013698,2]
[420261333,1775868642716,-502.10318327,0.00013698,2]
[420261334,1775868642735,-500.0,0.00013698,2]
[420261335,1775868642747,-500.0,0.00013698,2]
[420261336,1775868642774,-531.26588416,0.00013698,2]
[420261337,1775868642783,-500.69593754,0.00013698,2]
[420261338,1775868642793,-502.19247695,0.00013698,2]
[420261339,1775868642812,-504.81365338,0.00013698,2]
[420261341,1775868642827,-500.0,0.00013698,2]
[420261342,1775868642837,-500.82786924,0.00013698,2]
[420261343,1775868642846,-508.4957753,0.00013698,2]
[420261344,1775868642862,-500.44499269,0.00013698,2]
[420261345,1775868642871,-500.0,0.00013698,2]
[420261346,1775868642880,-505.53915314,0.00013698,2]
[420261347,1775868642890,-502.95042007,0.00013698,2]
[420261348,1775868642904,-511.23,0.00013698,2]
[420261349,1775868642914,-500.0,0.00013698,2]
[420261350,1775868642923,-17493.72,0.00013698,2]
[420261351,1775868642932,-500.0,0.00013698,2]
[420261352,1775868642945,-500.90713108,0.00013698,2]
[420261353,1775868642960,-628.18827578,0.00013698,2]
[420261354,1775868642969,-500.0,0.00013698,2]
[420261355,1775868642978,-500.0,0.00013698,2]
[420261356,1775868642988,-503.3541496,0.00013698,2]
[420261357,1775868643001,-500.6498639,0.00013698,2]
[420261358,1775868643012,-500.0,0.00013698,2]
[420261359,1775868643021,-500.68231831,0.00013698,2]
[420261360,1775868643032,-500.9943809,0.00013698,2]
[420261361,1775868643045,-591.94,0.00013698,2]
[420261362,1775868643056,-500.0,0.00013698,2]
[420261363,1775868643066,-646.87,0.00013698,2]
[420261364,1775868643076,-500.0,0.00013698,2]
[420261365,1775868643090,-500.0,0.00013698,2]
[420261366,1775868643105,-504.64576654,0.00013698,2]
[420261367,1775868643120,-501.23625942,0.00013698,2]
[420261368,1775868643130,-500.0,0.00013698,2]
[420261369,1775868643145,-500.0,0.00013698,2]
[420261370,1775868643161,-500.0,0.00013698,2]
[420261371,1775868643171,-462.70239669,0.00013698,2]
[420261372,1775868643187,-500.83641151,0.00013698,2]
[420261373,1775868643197,-500.89322905,0.00013698,2]
[420261374,1775868643208,-500.0,0.00013698,2]
[420261375,1775868643219,-500.0,0.00013698,2]
[420261376,1775868643243,-573.95732434,0.00013698,2]
[420261377,1775868643256,-13886.74,0.00013698,2]
[420261378,1775868643281,-500.46711114,0.00013698,2]
[420261379,1775868643294,-639.01,0.00013698,2]
[420261380,1775868643306,-500.0,0.00013698,2]
[420261381,1775868643325,-500.0,0.00013698,2]
[420261382,1775868643335,-486.21528122,0.00013698,2]
[420261383,1775868643345,-500.88698429,0.00013698,2]
[420261384,1775868643357,-500.0,0.00013698,2]
[420261385,1775868643374,-500.0,0.00013698,2]
[420261386,1775868643385,-500.0,0.00013698,2]
[420261387,1775868643401,-5327.58,0.00013698,2]
[420261388,1775868643417,-500.0,0.00013698,2]
[420261389,1775868643429,-500.0,0.00013698,2]
[420261390,1775868643443,-500.0,0.00013698,2]
[420261391,1775868643457,-500.0,0.00013698,2]
[420261392,1775868643467,-620.42,0.00013698,2]
[420261393,1775868643488,-500.0,0.00013698,2]
[420261394,1775868643515,-565.47406773,0.00013698,2]
[420261395,1775868643529,-500.0,0.00013698,2]
[420261396,1775868643551,-265.0744529,0.00013698,2]
[420261397,1775868643561,-500.0,0.00013698,2]
[420261398,1775868643577,-500.0,0.00013698,2]
[420261399,1775868643589,-500.0,0.00013698,2]
[420261400,1775868643598,-500.0,0.00013698,2]
[420261401,1775868643608,-500.0,0.00013698,2]
[420261402,1775868643625,-500.0,0.00013698,2]
[420261403,1775868643636,-566.18,0.00013698,2]
[420261404,1775868643648,-527.01,0.00013698,2]
[420261405,1775868643661,-500.0,0.00013698,2]
[420261406,1775868643676,-500.0,0.00013698,2]
[420261407,1775868643687,-504.34367015,0.00013698,2]
[420261408,1775868643697,-599.66932322,0.00013698,2]
[420261409,1775868643708,-500.0,0.00013698,2]
[420261410,1775868643723,-506.22280395,0.00013698,2]
[420261411,1775868643735,-500.0,0.00013698,2]
[420261412,1775868643746,-500.0,0.00013698,2]
[420261413,1775868643757,-171.95,0.00013698,2]
[420261414,1775868643770,-156.0,0.00013699,2]
[420261415,1775868643783,-181.3845844,0.00013699,2]
[420261416,1775868643792,-887.100066,0.00013699,2]
[420261417,1775868643802,-167.639285,0.00013699,2]
[420261418,1775868643822,-1000.0,0.00013699,2]
[420261419,1775868643833,-1000.0,0.00013699,2]
[420261420,1775868643846,-1484.60463954,0.00013705,2]
[420261421,1775868643878,-1500.0,0.00013708,2]
[420261422,1775868643891,-2398.4119403,0.00013759,2]
[420261423,1775868643907,-646.0359057,0.00013759,2]
[420261424,1775868643918,-376.580582,0.00013772,2]
[420261425,1775868643931,-1000.0,0.00013898,2]
[420261426,1775868643941,-319.9999,0.00013972,2]
[420261427,1775868643958,-1498.3121,0.00013972,2]
[420261428,1775868643968,-428.06,0.00013972,2]
[420261429,1775868643979,-500.0,0.00013972,2]
[420261430,1775868643998,-623.39696669,0.00013972,2]
[420261431,1775868644013,-500.0,0.00013972,2]
[420261432,1775868644025,-443.14,0.00013972,2]
[420261433,1775868644035,-278.12,0.00013972,2]
[420261434,1775868644051,-500.0,0.00013972,2]
[420261435,1775868644067,-500.0,0.00013972,2]
[420261436,1775868644079,-500.0,0.00013972,2]
[420261437,1775868644095,-500.0,0.00013972,2]
[420261438,1775868644118,-638.93,0.00013972,2]
[420261439,1775868644130,-190.39,0.00013972,2]
[420261440,1775868644155,-500.0,0.00013972,2]
[420261441,1775868644188,-180.64,0.00013972,2]
[420261442,1775868644199,-17493.72,0.00013972,2]
[420261443,1775868644218,-241.44,0.00013972,2]
[420261444,1775868644253,-500.0,0.00013972,2]
[420261445,1775868644264,-560.28,0.00013972,2]
[420261446,1775868644286,-393.34,0.00013972,2]
[420261447,1775868644298,-207.2,0.00013972,2]
[420261448,1775868644308,-500.0,0.00013972,2]
[420261449,1775868644322,-13886.74,0.00013972,2]
[420261450,1775868644342,-639.01,0.00013972,2]
[420261451,1775868644369,-500.0,0.00013972,2]
[420261452,1775868644380,-568.76,0.00013972,2]
[420261453,1775868644391,-541.79,0.00013972,2]
[420261454,1775868644418,-500.0,0.00013972,2]
[420261455,1775868644429,-391.04,0.00013972,2]
[420261457,1775868644446,-5327.58,0.00013972,2]
[420261458,1775868644461,-196.93,0.00013972,2]
[420261459,1775868644472,-500.0,0.00013972,2]
[420261460,1775868644484,-399.41,0.00013972,2]
[420261461,1775868644510,-500.0,0.00013972,2]
[420261462,1775868644521,-500.0,0.00013972,2]
[420261463,1775868644534,-500.0,0.00013972,2]
[420261464,1775868644557,-608.64,0.00013972,2]
[420261465,1775868644573,-500.0,0.00013972,2]
[420261466,1775868644594,-500.0,0.00013972,2]
[420261467,1775868644625,-550.99,0.00013972,2]
[420261468,1775868644636,-500.0,0.00013972,2]
[420261469,1775868644661,-251.51,0.00013972,2]
[420261470,1775868644681,-500.0,0.00014,2]
[420261471,1775868644698,-455.3790597,0.00014124,2]
[420261472,1775868644719,-1498.3121,0.00014246,2]
[420261473,1775868644730,-500.0,0.00014246,2]
[420261474,1775868644752,-206.98,0.00014246,2]
[420261475,1775868644778,-500.0,0.00014246,2]
[420261476,1775868644789,-500.0,0.00014246,2]
[420261477,1775868644821,-500.0,0.00014246,2]
[420261478,1775868644856,-500.0,0.00014246,2]
[420261479,1775868644896,-500.0,0.00014246,2]
[420261480,1775868644945,-17493.72,0.00014246,2]
[420261481,1775868644956,-303.45,0.00014246,2]
[420261482,1775868644978,-500.0,0.00014246,2]
[420261483,1775868644989,-13886.74,0.00014246,2]
[420261484,1775868645000,-639.01,0.00014246,2]
[420261485,1775868645018,-500.0,0.00014246,2]
[420261486,1775868645035,-543.77,0.00014246,2]
[420261487,1775868645046,-5327.58,0.00014246,2]
[420261488,1775868645078,-500.0,0.00014246,2]
[420261489,1775868645090,-500.0,0.00014246,2]
[420261490,1775868645118,-500.0,0.00014246,2]
[420261491,1775868645131,-500.0,0.00014246,2]
[420261492,1775868645154,-500.0,0.00014246,2]
[420261493,1775868645176,-500.0,0.00014246,2]
[420261494,1775868645199,-213.6,0.00014246,2]
[420261495,1775868645225,-250.0,0.00014247,2]
[420261496,1775868645244,-2000.0,0.00014256,2]
[420261497,1775868645265,-376.580582,0.00014287,2]
[420261498,1775868645277,-204.0,0.00014292,2]
[420261499,1775868645302,-2487.15318209,0.00014307,2]
[420261500,1775868645313,-10590.0,0.000145,2]
[420261501,1775868645324,-1978.2515,0.0001452,2]
[420261502,1775868645342,-500.0,0.0001452,2]
[420261503,1775868645357,-500.0,0.0001452,2]
[420261504,1775868645367,-571.82,0.0001452,2]
[420261505,1775868645386,-186.23,0.0001452,2]
[420261506,1775868645399,-435.39,0.0001452,2]
[420261507,1775868645425,-500.0,0.0001452,2]
[420261508,1775868645436,-17493.72,0.0001452,2]
[420261509,1775868645461,-590.1,0.0001452,2]
[420261510,1775868645474,-13886.74,0.0001452,2]
[420261511,1775868645485,-639.01,0.0001452,2]
[420261512,1775868645523,-356.38,0.0001452,2]
[420261513,1775868645533,-5327.58,0.0001452,2]
[420261515,1775868645553,-160.32,0.0001452,2]
[420261517,1775868645571,-514.74,0.0001452,2]
[420261518,1775868645582,-280.88,0.0001452,2]
[420261519,1775868645602,-500.0,0.0001452,2]
[420261520,1775868645615,-500.0,0.0001452,2]
[420261521,1775868645627,-500.0,0.0001452,2]
[420261522,1775868645640,-864.0,0.00014593,2]
[420261523,1775868645657,-471.0,0.00014605,2]
[420261524,1775868645670,-102820.0,0.000147,2]
[420261525,1775868645686,-500.0,0.00014794,2]
[420261526,1775868645708,-261.7,0.00014794,2]
[420261527,1775868645720,-245.35,0.00014794,2]
[420261528,1775868645754,-17493.72,0.00014794,2]
[420261530,1775868645766,-13886.74,0.00014794,2]
[420261532,1775868645789,-639.01,0.00014794,2]
[420261533,1775868645801,-5327.58,0.00014794,2]
[420261534,1775868645817,-500.0,0.00014794,2]
[420261535,1775868645837,-485.22,0.00014794,2]
[420261536,1775868645849,-160.16,0.00014794,2]
[420261537,1775868645859,-376.580582,0.00014801,2]
[420261538,1775868645879,-2500.0,0.00014804,2]
[420261539,1775868645900,-2579.17784983,0.00014855,2]
[420261540,1775868645915,-459.05613263,0.000149,2]
[420261541,1775868645930,-250.0,0.00014997,2]
[420261542,1775868645956,-3055.849822,0.00015,2]
[420261543,1775868645971,-445.0,0.00015,2]
[420261545,1775868645988,-2911.0,0.00015,2]
[420261546,1775868645998,-500.0,0.00015,2]
[420261547,1775868646022,-1638.35,0.00015,2]
[420261548,1775868646036,-160.0,0.00015,2]
[420261549,1775868646055,-500.0,0.00015068,2]
[420261550,1775868646077,-17493.72,0.00015068,2]
[420261551,1775868646091,-13886.74,0.00015068,2]
[420261552,1775868646102,-639.01,0.00015068,2]
[420261553,1775868646119,-5327.58,0.00015068,2]
[420261554,1775868646133,-500.0,0.00015068,2]
[420261555,1775868646144,-171.030887,0.00015068,2]
[420261556,1775868646160,-359.0461666,0.00015097,2]
[420261557,1775868646179,-151.0,0.00015102,2]
[420261558,1775868646190,-188.45977749,0.00015183,14]
[420261559,1775868646206,-165.93851776,0.00015205,2]
[420261560,1775868646219,-10000.0,0.00015205,2]
[420261561,1775868646231,-168.0,0.00015284,2]
[420261562,1775868646456,-500.0,0.00015342,2]
[420261563,1775868646470,-17493.72,0.00015342,2]
[420261564,1775868646481,-13886.74,0.00015342,2]
[420261565,1775868646510,-639.01,0.00015342,2]
[420261566,1775868646521,-5327.58,0.00015342,2]
[420261567,1775868646530,-500.0,0.00015342,2]
[420261568,1775868646565,-3000.0,0.00015352,2]
[420261569,1775868646574,-2674.60743027,0.00015403,2]
[420261570,1775868646586,-3055.34714965,0.00015442,2]
[420261571,1775868646601,-160.0,0.00015464,2]
[420261572,1775868646611,-160.0,0.00015464,2]
[420261573,1775868646621,-160.0,0.00015464,2]
[420261574,1775868646634,-3000.0,0.000155,30]
[420261575,1775868646652,-3000.0,0.0001551,30]
[420261576,1775868646675,-3000.0,0.0001552,30]
[420261577,1775868646688,-3000.0,0.0001553,30]
[420261578,1775868646702,-151.0,0.00015537,2]
[420261579,1775868646721,-3000.0,0.0001554,30]
[420261580,1775868646741,-3000.0,0.0001555,30]
[420261581,1775868646760,-3000.0,0.0001556,30]
[420261582,1775868646777,-3000.0,0.0001557,30]
[420261583,1775868646817,-3000.0,0.0001558,30]
[420261584,1775868646855,-3000.0,0.0001559,30]
[420261585,1775868646891,-3000.0,0.000156,30]
[420261586,1775868646900,-471.0,0.00015605,2]
[420261587,1775868646923,-3000.0,0.0001561,30]
[420261588,1775868646933,-500.0,0.00015616,2]
[420261589,1775868646943,-17493.72,0.00015616,2]
[420261590,1775868646963,-13886.74,0.00015616,2]
[420261591,1775868646974,-639.01,0.00015616,2]
[420261592,1775868646984,-5327.58,0.00015616,2]
[420261593,1775868647000,-500.0,0.00015616,2]
[420261594,1775868647013,-3000.0,0.0001562,30]
[420261595,1775868647034,-5032.771553,0.0001563,30]
[420261596,1775868647044,-250.0,0.0001584,2]
[420261597,1775868647057,-500.0,0.0001589,2]
[420261598,1775868647074,-188.33773204,0.0001589,2]
[420261599,1775868647086,-17493.72,0.0001589,2]
[420261600,1775868647101,-13886.74,0.0001589,2]
[420261601,1775868647117,-639.01,0.0001589,2]
[420261602,1775868647127,-5327.58,0.0001589,2]
[420261603,1775868647138,-500.0,0.0001589,2]
[420261604,1775868647153,-3500.0,0.000159,2]
[420261605,1775868647165,-455.4746423,0.00015918,2]
[420261606,1775868647182,-325.1962115,0.00015918,2]
[420261607,1775868647196,-1839.79833764,0.00016,2]
[420261608,1775868647230,-500.0,0.00016,2]
[420261609,1775868647242,-3000.0,0.00016,2]
[420261610,1775868647251,-1258.42,0.00016,2]
[420261611,1775868647278,-2487.21,0.00016,2]
[420261612,1775868647289,-255.4362847,0.00016002,14]
[420261613,1775868647298,-3000.0,0.0001601,2]
[420261614,1775868647309,-3000.0,0.0001602,2]
[420261615,1775868647322,-3000.0,0.0001603,2]
[420261616,1775868647332,-3000.0,0.0001604,2]
[420261617,1775868647347,-3000.0,0.0001605,2]
[420261618,1775868647357,-1000.0,0.00016052,2]
[420261619,1775868647367,-318.55624398,0.0001606,2]
[420261620,1775868647379,-3000.0,0.0001606,2]
[420261621,1775868647390,-3000.0,0.0001607,2]
[420261622,1775868647399,-3000.0,0.0001608,2]
[420261623,1775868647408,-3000.0,0.0001609,2]
[420261624,1775868647418,-3000.0,0.000161,2]
[420261625,1775868647434,-3000.0,0.0001611,2]
[420261626,1775868647443,-3000.0,0.0001612,2]
[420261627,1775868647452,-3000.0,0.0001613,2]
[420261628,1775868647462,-157.2055,0.00016137,2]
[420261629,1775868647474,-800.0,0.00016138,2]
[420261630,1775868647483,-500.0,0.00016138,2]
[420261631,1775868647493,-500.0,0.00016138,2]
[420261632,1775868647509,-500.0,0.00016138,2]
[420261633,1775868647519,-500.0,0.00016138,2]
[420261634,1775868647528,-500.0,0.00016138,2]
[420261635,1775868647546,-500.0,0.00016138,2]
[420261636,1775868647555,-500.0,0.00016138,2]
[420261637,1775868647567,-500.0,0.00016138,2]
[420261638,1775868647576,-500.0,0.00016138,2]
[420261639,1775868647593,-500.0,0.00016138,2]
[420261640,1775868647605,-500.0,0.00016138,2]
[420261641,1775868647614,-500.0,0.00016138,2]
[420261642,1775868647628,-3000.0,0.0001614,2]
[420261643,1775868647637,-3000.0,0.0001615,2]
[420261644,1775868647654,-3000.0,0.0001616,2]
[420261645,1775868647664,-358.12,0.00016164,2]
[420261646,1775868647673,-17493.72,0.00016164,2]
[420261647,1775868647683,-13886.74,0.00016164,2]
[420261648,1775868647702,-639.01,0.00016164,2]
[420261649,1775868647717,-5327.58,0.00016164,2]
[420261650,1775868647726,-500.0,0.00016164,2]
[420261651,1775868647735,-3000.0,0.0001617,2]
[420261652,1775868647751,-3000.0,0.0001618,2]
[420261653,1775868647761,-3000.0,0.0001619,2]
[420261654,1775868647771,-529.9254858,0.000162,2]
[420261655,1775868647779,-501.1555375,0.000162,2]
[420261656,1775868647798,-500.0,0.000162,2]
[420261657,1775868647815,-501.31586497,0.000162,2]
[420261658,1775868647825,-500.0,0.000162,2]
[420261659,1775868647845,-500.0,0.000162,2]
[420261660,1775868647859,-500.0,0.000162,2]
[420261661,1775868647894,-505.92762617,0.000162,2]
[420261662,1775868647905,-501.19615954,0.000162,2]
[420261663,1775868647922,-500.0,0.000162,2]
[420261664,1775868647964,-500.0,0.000162,2]
[420261665,1775868647992,-245.9780614,0.000162,2]
[420261666,1775868648017,-3000.0,0.000162,2]
[420261667,1775868648027,-3000.0,0.0001621,2]
[420261668,1775868648039,-3000.0,0.0001622,2]
[420261669,1775868648056,-3000.0,0.0001623,2]
[420261670,1775868648066,-3000.0,0.0001624,2]
[420261671,1775868648079,-3000.0,0.0001625,2]
[420261672,1775868648093,-3000.0,0.0001626,2]
[420261673,1775868648106,-3000.0,0.0001627,2]
[420261674,1775868648119,-500.0,0.00016273,2]
[420261675,1775868648127,-500.0,0.00016273,2]
[420261676,1775868648145,-253.60256291,0.00016273,2]
[420261677,1775868648162,-500.0,0.00016273,2]
[420261678,1775868648171,-500.0,0.00016273,2]
[420261679,1775868648180,-3000.0,0.0001628,2]
[420261680,1775868648196,-3000.0,0.0001629,2]
[420261681,1775868648206,-236.683,0.0001629,2]
[420261682,1775868648216,-231.0,0.00016292,2]
[420261683,1775868648235,-820.0,0.00016295,2]
[420261684,1775868648247,-3000.0,0.000163,2]
[420261685,1775868648257,-3000.0,0.0001631,2]
[420261686,1775868648266,-3000.0,0.0001632,2]
[420261687,1775868648284,-500.0,0.00016325,2]
[420261688,1775868648295,-500.0,0.00016325,2]
[420261689,1775868648304,-3000.0,0.0001633,2]
[420261690,1775868648317,-3000.0,0.0001634,2]
[420261691,1775868648336,-3000.0,0.0001635,2]
[420261692,1775868648349,-3000.0,0.0001636,2]
[420261693,1775868648365,-3000.0,0.0001637,2]
[420261694,1775868648379,-3000.0,0.0001638,2]
[420261695,1775868648390,-3000.0,0.0001639,2]
[420261696,1775868648411,-820.0,0.00016395,2]
[420261697,1775868648423,-3000.0,0.000164,2]
[420261698,1775868648432,-3000.0,0.0001641,2]
[420261699,1775868648452,-3000.0,0.0001642,2]
[420261700,1775868648467,-3000.0,0.0001643,2]
[420261701,1775868648480,-215.138671,0.00016438,2]
[420261702,1775868648494,-17493.72,0.00016438,2]
[420261703,1775868648529,-13886.74,0.00016438,2]
[420261704,1775868648539,-639.01,0.00016438,2]
[420261705,1775868648562,-5327.58,0.00016438,2]
[420261706,1775868648577,-500.0,0.00016438,2]
[420261707,1775868648590,-1243.0,0.00016438,2]
[420261708,1775868648607,-645.60672,0.00016438,2]
[420261709,1775868648625,-645.60672,0.00016438,2]
[420261710,1775868648655,-645.60672,0.00016438,2]
[420261711,1775868648666,-645.60672,0.00016438,2]
[420261712,1775868648709,-645.60672,0.00016438,2]
[420261713,1775868648719,-645.60672,0.00016438,2]
[420261714,1775868648729,-645.60672,0.00016438,2]
[420261715,1775868648743,-645.60672,0.00016438,2]
[420261716,1775868648761,-645.60672,0.00016438,2]
[420261717,1775868648770,-645.60672,0.00016438,2]
[420261718,1775868648809,-645.60672,0.00016438,2]
[420261719,1775868648820,-645.60672,0.00016438,2]
[420261720,1775868648833,-645.60672,0.00016438,2]
[420261721,1775868648866,-645.60672,0.00016438,2]
[420261722,1775868648875,-645.60672,0.00016438,2]
[420261723,1775868648884,-645.60672,0.00016438,2]
[420261724,1775868648894,-645.60672,0.00016438,2]
[420261725,1775868648912,-645.60672,0.00016438,2]
[420261726,1775868648922,-645.60672,0.00016438,2]
[420261727,1775868648931,-645.606724,0.00016438,2]
[420261728,1775868648947,-3000.0,0.0001644,2]
[420261729,1775868648958,-3434.91106035,0.00016448,2]
[420261730,1775868648967,-3000.0,0.0001645,2]
[420261731,1775868648983,-3000.0,0.0001646,2]
[420261732,1775868648992,-3000.0,0.0001647,2]
[420261733,1775868649000,-3000.0,0.0001648,2]
[420261734,1775868649009,-3000.0,0.0001649,2]
[420261735,1775868649018,-3000.0,0.000165,2]
[420261736,1775868649036,-3000.0,0.0001651,2]
[420261737,1775868649054,-3000.0,0.0001652,2]
[420261738,1775868649063,-1309.27381155,0.0001653,2]
[420261739,1775868649549,-595.00000075,0.0001653,2]
[420261740,1775868649578,-1000.0,0.0001653,2]
[420261741,1775868649732,-95.7261877,0.0001653,2]
[420261742,1775868649750,-3000.0,0.0001654,2]
[420261743,1775868649778,-3000.0,0.0001655,2]
[420261744,1775868649791,-3000.0,0.0001656,2]
[420261745,1775868649815,-5131.086214,0.0001657,2]
[420261746,1775868649824,-471.0,0.00016605,2]
[420261747,1775868649833,-500.0,0.00016618,2]
[420261748,1775868649853,-500.0,0.00016618,2]
[420261749,1775868649867,-2204.0,0.00016647,2]
[420261750,1775868649876,-1407.0,0.00016647,2]
[420261751,1775868649900,-644.0,0.00016647,2]
[420261752,1775868649911,-441.0,0.00016647,2]
[420261753,1775868649936,-184.0,0.00016647,2]
[420261754,1775868649950,-1000.0,0.00016686,2]
[420261755,1775868649977,-1002.86700798,0.00016686,2]
[420261756,1775868649992,-500.32463214,0.00016686,2]
[420261757,1775868650002,-1000.0,0.00016686,2]
[420261758,1775868650013,-954.60213836,0.00016686,2]
[420261759,1775868650027,-1000.0,0.00016686,2]
[420261760,1775868650053,-1000.0,0.00016686,2]
[420261761,1775868650065,-501.12389904,0.00016686,2]
[420261762,1775868650074,-1000.0,0.00016686,2]
[420261763,1775868650098,-501.52819087,0.00016686,2]
[420261764,1775868650112,-1000.0,0.00016686,2]
[420261765,1775868650122,-183.17202397,0.00016686,2]
[420261766,1775868650153,-500.0,0.00016689,2]
[420261767,1775868650162,-500.42937465,0.00016689,2]
[420261768,1775868650194,-500.0,0.00016711,2]
[420261769,1775868650206,-500.0,0.00016711,2]
[420261770,1775868650225,-500.0,0.00016711,2]
[420261771,1775868650249,-500.0,0.00016711,2]
[420261772,1775868650269,-10664.31072148,0.00016712,2]
[420261773,1775868650295,-3795.1,0.00016712,2]
[420261774,1775868650308,-1283.82286199,0.00016712,2]
[420261775,1775868650324,-1316.27915126,0.00016712,2]
[420261776,1775868650351,-318.84759742,0.00016712,2]
[420261777,1775868650380,-115.35966785,0.00016712,2]
[420261778,1775868650389,-13886.74,0.00016712,2]
[420261779,1775868650404,-639.01,0.00016712,2]
[420261780,1775868650424,-5327.58,0.00016712,2]
[420261781,1775868650432,-500.0,0.00016712,2]
[420261782,1775868650447,-1243.0,0.00016712,2]
[420261783,1775868650468,-1000.0,0.00016748,2]
[420261784,1775868650478,-501.39925248,0.00016748,2]
[420261785,1775868650495,-1000.0,0.00016748,2]
[420261786,1775868650511,-1000.0,0.00016748,2]
[420261787,1775868650536,-1000.0,0.00016748,2]
[420261788,1775868650544,-1000.0,0.00016748,2]
[420261789,1775868650554,-800.0,0.00016758,2]
[420261790,1775868650573,-197.7217201,0.00016763,2]
[420261791,1775868650595,-455.0366503,0.00016765,2]
[420261792,1775868650604,-250.0,0.00016785,2]
[420261793,1775868650613,-215.94464371,0.00016786,2]
[420261794,1775868650630,-325.1916262,0.00016801,2]
[420261795,1775868650641,-161.28775964,0.00016821,2]
[420261796,1775868650651,-1000.0,0.00016821,2]
[420261797,1775868650666,-1000.0,0.00016821,2]
[420261798,1775868650681,-160.0,0.00016898,3]
[420261799,1775868650691,-4428.89050771,0.000169,2]
[420261800,1775868650708,-493.6422938,0.000169,2]
[420261801,1775868650721,-274.6353357,0.000169,2]
[420261802,1775868650733,-701.62763894,0.000169,2]
[420261803,1775868650747,-361.0,0.000169,2]
[420261804,1775868650761,-6279.21407964,0.000169,2]
[420261805,1775868650772,-29917.43879866,0.000169,2]
[420261806,1775868650782,-188.45977749,0.0001691,14]
[420261807,1775868650791,-820.0,0.00016935,2]
[420261808,1775868650803,-17493.72,0.00016986,2]
[420261809,1775868650813,-2860.75793692,0.00016986,2]
[420261810,1775868650826,-11025.98206308,0.00016986,2]
[420261811,1775868650836,-639.01,0.00016986,2]
[420261812,1775868650848,-5327.58,0.00016986,2]
[420261813,1775868650857,-487.66478672,0.00016986,2]
[420261814,1775868650872,-1243.0,0.00016986,2]
[420261815,1775868650885,-2001.24,0.00017,2]
[420261816,1775868650903,-1000.0,0.00017166,2]
[420261817,1775868650913,-1052.97341527,0.00017166,2]
[420261818,1775868650926,-151.0,0.00017185,2]
[420261819,1775868650939,-1504.27244729,0.00017234,2]
[420261820,1775868651120,-501.54783954,0.00017234,2]
[420261821,1775868651131,-1500.0,0.00017234,2]
[420261822,1775868651149,-502.42105837,0.00017234,2]
[420261823,1775868651171,-1500.0,0.00017234,2]
[420261824,1775868651181,-1002.98935565,0.00017234,2]
[420261825,1775868651215,-507.68423642,0.00017237,2]
[420261826,1775868651285,-503.61922442,0.00017259,2]
[420261827,1775868651309,-501.26618294,0.00017259,2]
[420261828,1775868651340,-286.80548407,0.00017259,2]
[420261829,1775868651350,-17493.72,0.0001726,2]
[420261830,1775868651364,-13886.74,0.0001726,2]